[Event "Early-Titled-Tuesday-Blitz-February-27-2024"]
[Site "Chess.com"]
[Date "2024.02.27"]
[Round "10"]
[White "Heinza9"]
[Black "Ati1517"]
[Result "0-1"]
[WhiteElo "2322"]
[BlackElo "2238"]
[TimeControl "180+1"]
[EndTime "9:55:59 PST"]
[Termination "Ati1517 won on time"]

1. e4 {[%clk 0:02:56.5]} 1... c5 {[%clk 0:03:00.2]} 2. Nf3 {[%clk 0:02:55.7]}
2... d6 {[%clk 0:03:00]} 3. Bb5+ {[%clk 0:02:55.2]} 3... Bd7 {[%clk 0:02:58]} 4.
Bxd7+ {[%clk 0:02:55.2]} 4... Qxd7 {[%clk 0:02:58.9]} 5. O-O {[%clk 0:02:55.3]}
5... Nc6 {[%clk 0:02:58.8]} 6. c3 {[%clk 0:02:55.3]} 6... Nf6 {[%clk 0:02:59.3]}
7. Re1 {[%clk 0:02:55.6]} 7... e5 {[%clk 0:02:58.9]} 8. d4 {[%clk 0:02:55.6]}
8... cxd4 {[%clk 0:02:58]} 9. cxd4 {[%clk 0:02:55.3]} 9... Be7 {[%clk
0:02:57.8]} 10. Bg5 {[%clk 0:02:46.9]} 10... exd4 {[%clk 0:02:55.8]} 11. Nxd4
{[%clk 0:02:45.7]} 11... Nxd4 {[%clk 0:02:52.4]} 12. Qxd4 {[%clk 0:02:45.3]}
12... O-O {[%clk 0:02:52.5]} 13. e5 {[%clk 0:02:37.5]} 13... Qe6 {[%clk
0:02:37.3]} 14. Nc3 {[%clk 0:02:32.8]} 14... dxe5 {[%clk 0:02:36.9]} 15. Rxe5
{[%clk 0:02:32.3]} 15... Qd6 {[%clk 0:02:36.8]} 16. Qxd6 {[%clk 0:02:17.1]}
16... Bxd6 {[%clk 0:02:36.4]} 17. Bxf6 {[%clk 0:02:17.4]} 17... gxf6 {[%clk
0:02:35.5]} 18. Rd5 {[%clk 0:02:13.7]} 18... Be5 {[%clk 0:02:35.1]} 19. Na4
{[%clk 0:02:08.6]} 19... Rad8 {[%clk 0:02:34.1]} 20. Rad1 {[%clk 0:02:07.7]}
20... Rxd5 {[%clk 0:02:31.1]} 21. Rxd5 {[%clk 0:02:07.7]} 21... Rc8 {[%clk
0:02:31.6]} 22. g3 {[%clk 0:02:03.8]} 22... a6 {[%clk 0:02:28.2]} 23. Rd2 {[%clk
0:01:43.4]} 23... b5 {[%clk 0:02:26.2]} 24. Nb6 {[%clk 0:01:42]} 24... Rc6
{[%clk 0:02:26]} 25. Nd7 {[%clk 0:01:39.9]} 25... b4 {[%clk 0:02:13]} 26. f4
{[%clk 0:01:39]} 26... Bc7 {[%clk 0:02:11.5]} 27. Kg2 {[%clk 0:01:30.8]} 27...
a5 {[%clk 0:02:10.7]} 28. b3 {[%clk 0:01:29.7]} 28... Kg7 {[%clk 0:02:05.2]} 29.
Kf3 {[%clk 0:01:20.3]} 29... f5 {[%clk 0:02:03]} 30. Ke3 {[%clk 0:01:11.3]}
30... Rc3+ {[%clk 0:02:02.4]} 31. Kd4 {[%clk 0:01:10.1]} 31... Rc6 {[%clk
0:01:57.6]} 32. Ke3 {[%clk 0:00:46]} 32... Re6+ {[%clk 0:01:50]} 33. Kf3 {[%clk
0:00:43]} 33... Rc6 {[%clk 0:01:50]} 34. Ne5 {[%clk 0:00:40.2]} 34... Rc3+
{[%clk 0:01:43.5]} 35. Ke2 {[%clk 0:00:37.9]} 35... Bxe5 {[%clk 0:01:40.7]} 36.
fxe5 {[%clk 0:00:38]} 36... Rc5 {[%clk 0:01:40.3]} 37. Kf3 {[%clk 0:00:34.7]}
37... Rxe5 {[%clk 0:01:40.3]} 38. Kf4 {[%clk 0:00:35]} 38... Kf6 {[%clk
0:01:34.6]} 39. Rc2 {[%clk 0:00:33]} 39... Re4+ {[%clk 0:01:34.3]} 40. Kf3
{[%clk 0:00:32.7]} 40... Re6 {[%clk 0:01:27.2]} 41. Rc5 {[%clk 0:00:32.2]} 41...
Re5 {[%clk 0:01:19.5]} 42. Rc6+ {[%clk 0:00:29.6]} 42... Ke7 {[%clk 0:01:19.6]}
43. Ra6 {[%clk 0:00:24.8]} 43... Rc5 {[%clk 0:01:10.5]} 44. h4 {[%clk
0:00:22.4]} 44... h5 {[%clk 0:01:05.3]} 45. Kf4 {[%clk 0:00:22]} 45... f6 {[%clk
0:01:03.7]} 46. Ra7+ {[%clk 0:00:16.9]} 46... Kf8 {[%clk 0:01:03.6]} 47. Ra6
{[%clk 0:00:12.4]} 47... Kf7 {[%clk 0:01:03.1]} 48. Ra7+ {[%clk 0:00:12.2]}
48... Kg6 {[%clk 0:01:03.3]} 49. Ra6 {[%clk 0:00:12.1]} 49... Re5 {[%clk
0:00:58]} 50. Ra8 {[%clk 0:00:11.3]} 50... Re4+ {[%clk 0:00:58.3]} 51. Kf3
{[%clk 0:00:11]} 51... Re1 {[%clk 0:00:57.9]} 52. Rxa5 {[%clk 0:00:10.5]} 52...
Rf1+ {[%clk 0:00:58.2]} 53. Kg2 {[%clk 0:00:10.4]} 53... Rc1 {[%clk 0:00:58.4]}
54. Ra4 {[%clk 0:00:09.3]} 54... Rc2+ {[%clk 0:00:58.2]} 55. Kf3 {[%clk
0:00:09.6]} 55... Rc3+ {[%clk 0:00:57.3]} 56. Kf4 {[%clk 0:00:09.8]} 56... Rc2
{[%clk 0:00:57.7]} 57. Rxb4 {[%clk 0:00:09.8]} 57... Rxa2 {[%clk 0:00:57.7]} 58.
Rb8 {[%clk 0:00:09.6]} 58... Rf2+ {[%clk 0:00:57.6]} 59. Ke3 {[%clk 0:00:09]}
59... Rg2 {[%clk 0:00:57.8]} 60. Kf3 {[%clk 0:00:09.3]} 60... Rb2 {[%clk
0:00:57.6]} 61. b4 {[%clk 0:00:09.5]} 61... Rb3+ {[%clk 0:00:57.2]} 62. Kf4
{[%clk 0:00:09.3]} 62... Rb2 {[%clk 0:00:55.7]} 63. Rg8+ {[%clk 0:00:05.9]}
63... Kf7 {[%clk 0:00:55.5]} 64. Kxf5 {[%clk 0:00:05.2]} 64... Kxg8 {[%clk
0:00:54.5]} 65. Kxf6 {[%clk 0:00:03.4]} 65... Rxb4 {[%clk 0:00:54.5]} 66. Kg5
{[%clk 0:00:03.6]} 66... Rb5+ {[%clk 0:00:55.1]} 67. Kf4 {[%clk 0:00:03.1]}
67... Kf7 {[%clk 0:00:55.1]} 68. g4 {[%clk 0:00:01.8]} 68... Rb4+ {[%clk
0:00:54.6]} 69. Kg5 {[%clk 0:00:01.8]} 69... hxg4 {[%clk 0:00:54]} 0-1

[Event "Early-Titled-Tuesday-Blitz-February-27-2024"]
[Site "Chess.com"]
[Date "2024.02.27"]
[Round "10"]
[White "scarabee43"]
[Black "Shield12"]
[Result "1/2-1/2"]
[WhiteElo "2893"]
[BlackElo "2978"]
[TimeControl "180+1"]
[EndTime "9:56:01 PST"]
[Termination "Game drawn by repetition"]

1. d4 {[%clk 0:03:00.9]} 1... Nf6 {[%clk 0:02:58.5]} 2. c4 {[%clk 0:03:01.5]}
2... e6 {[%clk 0:02:58.8]} 3. Nf3 {[%clk 0:03:01.5]} 3... d5 {[%clk 0:02:58.3]}
4. Nc3 {[%clk 0:03:01.1]} 4... Bb4 {[%clk 0:02:55.7]} 5. cxd5 {[%clk 0:02:58.2]}
5... exd5 {[%clk 0:02:55.9]} 6. Bf4 {[%clk 0:02:57]} 6... Ne4 {[%clk 0:02:54]}
7. Rc1 {[%clk 0:02:52.6]} 7... Nd7 {[%clk 0:02:52.5]} 8. e3 {[%clk 0:02:50.9]}
8... g5 {[%clk 0:02:46.3]} 9. Bg3 {[%clk 0:02:50.6]} 9... h5 {[%clk 0:02:44.9]}
10. h4 {[%clk 0:02:27.7]} 10... g4 {[%clk 0:02:33]} 11. Ng1 {[%clk 0:02:18.6]}
11... Nxg3 {[%clk 0:02:27.3]} 12. fxg3 {[%clk 0:02:18.8]} 12... Qe7 {[%clk
0:02:25.4]} 13. Qd2 {[%clk 0:01:58.2]} 13... Nf6 {[%clk 0:02:10.6]} 14. Bd3
{[%clk 0:01:58.3]} 14... c5 {[%clk 0:02:07.8]} 15. a3 {[%clk 0:01:48.8]} 15...
Bxc3 {[%clk 0:02:03.7]} 16. bxc3 {[%clk 0:01:45.7]} 16... c4 {[%clk 0:01:51.6]}
17. Bc2 {[%clk 0:01:44.8]} 17... Ne4 {[%clk 0:01:51.7]} 18. Bxe4 {[%clk
0:01:44.5]} 18... Qxe4 {[%clk 0:01:52.6]} 19. Qf2 {[%clk 0:01:32.1]} 19... Bf5
{[%clk 0:01:22.2]} 20. Ne2 {[%clk 0:01:32.2]} 20... O-O-O {[%clk 0:01:21.8]} 21.
O-O {[%clk 0:01:31.7]} 21... Bg6 {[%clk 0:01:21.7]} 22. Nf4 {[%clk 0:01:26.3]}
22... Rhe8 {[%clk 0:01:20.8]} 23. Rce1 {[%clk 0:01:25.3]} 23... Qe7 {[%clk
0:01:13.1]} 24. a4 {[%clk 0:01:18.9]} 24... Rd6 {[%clk 0:01:08.3]} 25. e4 {[%clk
0:01:04.9]} 25... dxe4 {[%clk 0:01:04.2]} 26. Re3 {[%clk 0:00:48.7]} 26... Qd7
{[%clk 0:01:03.6]} 27. Qa2 {[%clk 0:00:42.2]} 27... Kb8 {[%clk 0:01:02.3]} 28.
Qxc4 {[%clk 0:00:41.5]} 28... Rc8 {[%clk 0:00:55]} 29. Qa2 {[%clk 0:00:34.1]}
29... f5 {[%clk 0:00:54.1]} 30. Nxg6 {[%clk 0:00:29.1]} 30... Rxg6 {[%clk
0:00:53.6]} 31. Qf2 {[%clk 0:00:26.6]} 31... Rf6 {[%clk 0:00:39.4]} 32. Rxe4
{[%clk 0:00:26.5]} 32... fxe4 {[%clk 0:00:38.6]} 33. Qxf6 {[%clk 0:00:26.7]}
33... Re8 {[%clk 0:00:30.8]} 34. Qf4+ {[%clk 0:00:20.5]} 34... Kc8 {[%clk
0:00:27.9]} 35. Re1 {[%clk 0:00:20.5]} 35... Qxa4 {[%clk 0:00:21.9]} 36. Rxe4
{[%clk 0:00:17.4]} 36... Qa1+ {[%clk 0:00:19]} 37. Kh2 {[%clk 0:00:16.8]} 37...
Rxe4 {[%clk 0:00:19.1]} 38. Qxe4 {[%clk 0:00:17.3]} 38... Qxc3 {[%clk
0:00:19.7]} 39. Qf5+ {[%clk 0:00:16]} 39... Kc7 {[%clk 0:00:19.3]} 40. d5 {[%clk
0:00:13.9]} 40... Qd4 {[%clk 0:00:17.7]} 41. Qxh5 {[%clk 0:00:13.4]} 41... a5
{[%clk 0:00:17.2]} 42. Qf7+ {[%clk 0:00:12.7]} 42... Kb6 {[%clk 0:00:17.1]} 43.
Qe6+ {[%clk 0:00:13]} 43... Kc5 {[%clk 0:00:17.1]} 44. Qc8+ {[%clk 0:00:09.6]}
44... Kxd5 {[%clk 0:00:13.5]} 45. Qxb7+ {[%clk 0:00:09.9]} 45... Kc4 {[%clk
0:00:11.5]} 46. Qb1 {[%clk 0:00:05.6]} 46... a4 {[%clk 0:00:10.5]} 47. Qc2+
{[%clk 0:00:06]} 47... Kb4 {[%clk 0:00:10.4]} 48. Qb1+ {[%clk 0:00:06.4]} 48...
Ka3 {[%clk 0:00:10.7]} 49. Qc1+ {[%clk 0:00:07]} 49... Kb3 {[%clk 0:00:10.4]}
50. Qb1+ {[%clk 0:00:07.6]} 50... Kc4 {[%clk 0:00:05.3]} 51. Qa2+ {[%clk
0:00:07.2]} 51... Kb4 {[%clk 0:00:05.1]} 52. Qb1+ {[%clk 0:00:07.3]} 52... Ka5
{[%clk 0:00:04.8]} 53. Qf5+ {[%clk 0:00:07.2]} 53... Kb4 {[%clk 0:00:05.2]} 54.
Qb1+ {[%clk 0:00:07.3]} 1/2-1/2

[Event "Early-Titled-Tuesday-Blitz-February-27-2024"]
[Site "Chess.com"]
[Date "2024.02.27"]
[Round "10"]
[White "Sanan_Sjugirov"]
[Black "Jospem"]
[Result "0-1"]
[WhiteElo "2979"]
[BlackElo "3079"]
[TimeControl "180+1"]
[EndTime "9:56:09 PST"]
[Termination "Jospem won on time"]

1. e4 {[%clk 0:03:00.9]} 1... c5 {[%clk 0:03:00.6]} 2. Nf3 {[%clk 0:03:01.1]}
2... d6 {[%clk 0:03:01.4]} 3. Bb5+ {[%clk 0:02:59.9]} 3... Nd7 {[%clk
0:03:01.5]} 4. O-O {[%clk 0:02:59.1]} 4... a6 {[%clk 0:03:01.8]} 5. Bd3 {[%clk
0:02:58.7]} 5... Ngf6 {[%clk 0:03:01.6]} 6. Re1 {[%clk 0:02:58.4]} 6... e6
{[%clk 0:03:02.2]} 7. Bf1 {[%clk 0:02:58.4]} 7... b6 {[%clk 0:03:01.9]} 8. c3
{[%clk 0:02:58.1]} 8... Bb7 {[%clk 0:03:02.4]} 9. d3 {[%clk 0:02:58.8]} 9... g6
{[%clk 0:02:58.2]} 10. Nbd2 {[%clk 0:02:58.8]} 10... Bg7 {[%clk 0:02:50.2]} 11.
d4 {[%clk 0:02:57.7]} 11... O-O {[%clk 0:02:35.6]} 12. Bd3 {[%clk 0:02:57.4]}
12... Qc7 {[%clk 0:02:35]} 13. Nf1 {[%clk 0:02:56.4]} 13... b5 {[%clk
0:02:35.3]} 14. Ng3 {[%clk 0:02:55.8]} 14... Rac8 {[%clk 0:02:25]} 15. h3 {[%clk
0:02:55.3]} 15... Rfe8 {[%clk 0:02:21.9]} 16. Bg5 {[%clk 0:02:47.1]} 16... e5
{[%clk 0:02:21.4]} 17. d5 {[%clk 0:02:44.3]} 17... c4 {[%clk 0:02:21.9]} 18. Bc2
{[%clk 0:02:44.3]} 18... a5 {[%clk 0:02:22.6]} 19. Qd2 {[%clk 0:02:43.3]} 19...
Rb8 {[%clk 0:02:18.8]} 20. a3 {[%clk 0:02:39.1]} 20... Bc8 {[%clk 0:02:17.5]}
21. Bh6 {[%clk 0:02:35.9]} 21... Nc5 {[%clk 0:02:14.6]} 22. Bxg7 {[%clk
0:02:34.2]} 22... Kxg7 {[%clk 0:02:15.5]} 23. Nh2 {[%clk 0:02:30]} 23... Qe7
{[%clk 0:02:11.9]} 24. Rf1 {[%clk 0:02:26]} 24... h5 {[%clk 0:02:00.1]} 25. Qe3
{[%clk 0:01:34.5]} 25... b4 {[%clk 0:01:21.8]} 26. axb4 {[%clk 0:01:35.4]} 26...
axb4 {[%clk 0:01:22.7]} 27. cxb4 {[%clk 0:01:32.3]} 27... Rxb4 {[%clk
0:01:23.6]} 28. Ra2 {[%clk 0:01:24.1]} 28... h4 {[%clk 0:01:12.2]} 29. Ne2
{[%clk 0:01:24]} 29... Qb7 {[%clk 0:01:10.2]} 30. Rb1 {[%clk 0:01:16.1]} 30...
Ncxe4 {[%clk 0:00:59.6]} 31. Nf3 {[%clk 0:00:46.5]} 31... c3 {[%clk 0:00:48.1]}
32. Nxc3 {[%clk 0:00:32.4]} 32... Nxc3 {[%clk 0:00:47.8]} 33. Qxc3 {[%clk
0:00:33.3]} 33... Nxd5 {[%clk 0:00:46.4]} 34. Qd2 {[%clk 0:00:33.5]} 34... Nf4
{[%clk 0:00:43.6]} 35. Ra3 {[%clk 0:00:24.2]} 35... d5 {[%clk 0:00:23.4]} 36.
Re1 {[%clk 0:00:14.5]} 36... d4 {[%clk 0:00:12.3]} 37. Be4 {[%clk 0:00:12.5]}
37... Qb6 {[%clk 0:00:09.9]} 38. Nxe5 {[%clk 0:00:11.1]} 38... Qf6 {[%clk
0:00:06.5]} 39. Rf3 {[%clk 0:00:06.6]} 39... Qxe5 {[%clk 0:00:04.5]} 40. Rxf4
{[%clk 0:00:06.7]} 40... Rb6 {[%clk 0:00:03]} 41. Rxh4 {[%clk 0:00:05.3]} 41...
Kg8 {[%clk 0:00:02.6]} 42. Rd1 {[%clk 0:00:04.1]} 42... Rd6 {[%clk 0:00:02.3]}
43. Bc2 {[%clk 0:00:03.5]} 43... Qf6 {[%clk 0:00:02.5]} 44. Rf4 {[%clk
0:00:03.5]} 44... Qg7 {[%clk 0:00:02.2]} 45. Rxd4 {[%clk 0:00:03.2]} 45... Rb6
{[%clk 0:00:02.5]} 46. Rd8 {[%clk 0:00:03.2]} 46... Re6 {[%clk 0:00:03.1]} 47.
Rxe8+ {[%clk 0:00:02.7]} 47... Rxe8 {[%clk 0:00:04]} 48. Ba4 {[%clk 0:00:03.2]}
48... Rf8 {[%clk 0:00:04.2]} 49. Bb3 {[%clk 0:00:03.8]} 49... Qe5 {[%clk
0:00:03.5]} 50. Qc3 {[%clk 0:00:03.9]} 50... Qg5 {[%clk 0:00:03]} 51. Re1 {[%clk
0:00:03.8]} 51... Bf5 {[%clk 0:00:03.3]} 52. Qf3 {[%clk 0:00:04]} 52... Qd2
{[%clk 0:00:03.2]} 53. Qe2 {[%clk 0:00:03.1]} 53... Qb4 {[%clk 0:00:02.9]} 54.
Bc4 {[%clk 0:00:02.5]} 54... Rc8 {[%clk 0:00:02.7]} 55. b3 {[%clk 0:00:02.9]}
55... Bd7 {[%clk 0:00:02.9]} 56. Qf3 {[%clk 0:00:03.1]} 56... Qxe1+ {[%clk
0:00:02.5]} 57. Kh2 {[%clk 0:00:03.6]} 57... Qe5+ {[%clk 0:00:03.2]} 58. g3
{[%clk 0:00:04]} 58... Be6 {[%clk 0:00:03.8]} 0-1

[Event "Early-Titled-Tuesday-Blitz-February-27-2024"]
[Site "Chess.com"]
[Date "2024.02.27"]
[Round "10"]
[White "krzyzan94"]
[Black "banhgiahuy2606"]
[Result "1-0"]
[WhiteElo "2800"]
[BlackElo "2655"]
[TimeControl "180+1"]
[EndTime "9:56:10 PST"]
[Termination "krzyzan94 won on time"]

1. Nf3 {[%clk 0:02:54.5]} 1... Nf6 {[%clk 0:02:59.9]} 2. g3 {[%clk 0:02:54.7]}
2... e6 {[%clk 0:03:00.3]} 3. Bg2 {[%clk 0:02:55.3]} 3... d5 {[%clk 0:03:01.2]}
4. O-O {[%clk 0:02:55.9]} 4... Be7 {[%clk 0:03:02.1]} 5. c4 {[%clk 0:02:56.5]}
5... O-O {[%clk 0:03:03]} 6. b3 {[%clk 0:02:56.9]} 6... b6 {[%clk 0:03:03]} 7.
cxd5 {[%clk 0:02:57.4]} 7... Nxd5 {[%clk 0:03:01.6]} 8. Bb2 {[%clk 0:02:57.1]}
8... Bb7 {[%clk 0:03:01.9]} 9. Nc3 {[%clk 0:02:57.2]} 9... c5 {[%clk 0:03:00.4]}
10. Rc1 {[%clk 0:02:54.7]} 10... Nd7 {[%clk 0:03:00.6]} 11. d4 {[%clk
0:02:45.3]} 11... Rc8 {[%clk 0:02:59.6]} 12. Nxd5 {[%clk 0:02:39.9]} 12... Bxd5
{[%clk 0:02:59.2]} 13. dxc5 {[%clk 0:02:34.3]} 13... Rxc5 {[%clk 0:02:52.2]} 14.
Qd2 {[%clk 0:02:32.2]} 14... Rxc1 {[%clk 0:02:39.5]} 15. Rxc1 {[%clk 0:02:33.1]}
15... Nc5 {[%clk 0:02:35.4]} 16. Qf4 {[%clk 0:02:23.3]} 16... Bf6 {[%clk
0:02:30.9]} 17. Bxf6 {[%clk 0:02:21.8]} 17... Qxf6 {[%clk 0:02:30.6]} 18. Qxf6
{[%clk 0:02:21.5]} 18... gxf6 {[%clk 0:02:31]} 19. Nd4 {[%clk 0:02:01.5]} 19...
Bxg2 {[%clk 0:02:20.1]} 20. Kxg2 {[%clk 0:02:02.4]} 20... Rd8 {[%clk 0:02:17.4]}
21. e3 {[%clk 0:02:03]} 21... Kg7 {[%clk 0:02:13.7]} 22. b4 {[%clk 0:02:00.9]}
22... Na6 {[%clk 0:02:10.4]} 23. a3 {[%clk 0:01:57.3]} 23... Rd7 {[%clk
0:02:09.3]} 24. Rc8 {[%clk 0:01:50.6]} 24... Nc7 {[%clk 0:02:04]} 25. g4 {[%clk
0:01:34.8]} 25... Nd5 {[%clk 0:02:01.9]} 26. Ra8 {[%clk 0:01:27.8]} 26... Rc7
{[%clk 0:01:58.2]} 27. Kf3 {[%clk 0:01:20.1]} 27... Nc3 {[%clk 0:01:55.9]} 28.
b5 {[%clk 0:01:13.1]} 28... Nb1 {[%clk 0:01:52]} 29. Nc6 {[%clk 0:01:00.4]}
29... Nxa3 {[%clk 0:01:43.5]} 30. Nxa7 {[%clk 0:01:01.1]} 30... Rc5 {[%clk
0:01:36.4]} 31. Nc8 {[%clk 0:00:47.8]} 31... Nc4 {[%clk 0:01:35.8]} 32. Ne7
{[%clk 0:00:44.5]} 32... Rxb5 {[%clk 0:01:26.1]} 33. Rg8+ {[%clk 0:00:44.3]}
33... Kh6 {[%clk 0:01:25.6]} 34. h4 {[%clk 0:00:41.9]} 34... Ne5+ {[%clk
0:01:25.8]} 35. Kg3 {[%clk 0:00:41.5]} 35... Ng6 {[%clk 0:01:21.5]} 36. Nc8
{[%clk 0:00:27.2]} 36... Rd5 {[%clk 0:00:47.5]} 37. Nxb6 {[%clk 0:00:26.5]}
37... Rd3 {[%clk 0:00:45.4]} 38. Nc4 {[%clk 0:00:23.4]} 38... Ne7 {[%clk
0:00:37.8]} 39. g5+ {[%clk 0:00:15.7]} 39... fxg5 {[%clk 0:00:34.9]} 40. hxg5+
{[%clk 0:00:16.6]} 40... Kh5 {[%clk 0:00:34.4]} 41. Rg7 {[%clk 0:00:17.4]} 41...
Nf5+ {[%clk 0:00:34.5]} 42. Kf4 {[%clk 0:00:17.8]} 42... Nxg7 {[%clk 0:00:35.4]}
43. Ne5 {[%clk 0:00:14.6]} 43... Rd2 {[%clk 0:00:32.6]} 44. f3 {[%clk
0:00:13.5]} 44... Rd8 {[%clk 0:00:26.6]} 45. Ng4 {[%clk 0:00:12.4]} 45... Nf5
{[%clk 0:00:23.8]} 46. e4 {[%clk 0:00:10.5]} 46... Nd4 {[%clk 0:00:23.2]} 47.
Ne5 {[%clk 0:00:08.1]} 47... h6 {[%clk 0:00:16.6]} 48. gxh6 {[%clk 0:00:07.1]}
48... f6 {[%clk 0:00:16.8]} 49. Nf7 {[%clk 0:00:06.3]} 49... e5+ {[%clk
0:00:15.4]} 50. Kg3 {[%clk 0:00:04.7]} 50... Ne2+ {[%clk 0:00:13.4]} 51. Kf2
{[%clk 0:00:04.6]} 51... Rd2 {[%clk 0:00:12.7]} 52. h7 {[%clk 0:00:03.7]} 52...
Nf4+ {[%clk 0:00:12.1]} 53. Ke1 {[%clk 0:00:03.6]} 53... Re2+ {[%clk 0:00:05.4]}
54. Kf1 {[%clk 0:00:03.2]} 1-0

[Event "Early-Titled-Tuesday-Blitz-February-27-2024"]
[Site "Chess.com"]
[Date "2024.02.27"]
[Round "10"]
[White "NikitaShnadrygin"]
[Black "LimeInTheCoconut"]
[Result "0-1"]
[WhiteElo "2605"]
[BlackElo "2513"]
[TimeControl "180+1"]
[EndTime "9:56:11 PST"]
[Termination "LimeInTheCoconut won by resignation"]

1. e4 {[%clk 0:02:59.9]} 1... e5 {[%clk 0:02:53.7]} 2. Nf3 {[%clk 0:02:58.6]}
2... Nc6 {[%clk 0:02:53.1]} 3. Bb5 {[%clk 0:02:58.8]} 3... g6 {[%clk 0:02:51.4]}
4. c3 {[%clk 0:02:55.5]} 4... d6 {[%clk 0:02:47.1]} 5. d4 {[%clk 0:02:53]} 5...
Bd7 {[%clk 0:02:46.7]} 6. O-O {[%clk 0:02:35.9]} 6... Bg7 {[%clk 0:02:45.6]} 7.
dxe5 {[%clk 0:02:22.7]} 7... Nxe5 {[%clk 0:02:43.5]} 8. Bxd7+ {[%clk 0:02:09.6]}
8... Qxd7 {[%clk 0:02:41.8]} 9. Nd4 {[%clk 0:02:04.6]} 9... Nf6 {[%clk
0:02:34.9]} 10. Qc2 {[%clk 0:01:58.9]} 10... O-O {[%clk 0:02:21.9]} 11. f4
{[%clk 0:01:13.1]} 11... Nc6 {[%clk 0:02:20.6]} 12. Nf3 {[%clk 0:01:13.2]} 12...
Rfe8 {[%clk 0:02:17.9]} 13. Re1 {[%clk 0:01:13.5]} 13... Qg4 {[%clk 0:01:51.1]}
14. Na3 {[%clk 0:00:51.4]} 14... Nh5 {[%clk 0:01:37]} 15. Nb5 {[%clk 0:00:41.7]}
15... Re7 {[%clk 0:01:32.8]} 16. h3 {[%clk 0:00:37.8]} 16... Qg3 {[%clk
0:01:28.5]} 17. Qf2 {[%clk 0:00:37.6]} 17... a6 {[%clk 0:01:13.4]} 18. Nbd4
{[%clk 0:00:35.3]} 18... Rae8 {[%clk 0:01:04.9]} 19. Nxc6 {[%clk 0:00:28.4]}
19... bxc6 {[%clk 0:01:05.8]} 20. e5 {[%clk 0:00:28.1]} 20... dxe5 {[%clk
0:00:33.8]} 21. Qxg3 {[%clk 0:00:26.5]} 21... Nxg3 {[%clk 0:00:32.1]} 22. fxe5
{[%clk 0:00:27.1]} 22... Bxe5 {[%clk 0:00:26.8]} 23. Bg5 {[%clk 0:00:11.5]}
23... f6 {[%clk 0:00:20.3]} 24. Bh4 {[%clk 0:00:09]} 24... Nf5 {[%clk
0:00:18.6]} 25. Bf2 {[%clk 0:00:09.2]} 25... Kf7 {[%clk 0:00:13.4]} 26. Rad1
{[%clk 0:00:05]} 26... Bd6 {[%clk 0:00:12.4]} 27. g4 {[%clk 0:00:04]} 27...
Rxe1+ {[%clk 0:00:12]} 28. Rxe1 {[%clk 0:00:04.9]} 28... Rxe1+ {[%clk 0:00:12]}
29. Nxe1 {[%clk 0:00:05.8]} 29... Ne7 {[%clk 0:00:10.5]} 30. Kg2 {[%clk
0:00:04.8]} 30... Ke6 {[%clk 0:00:10.5]} 31. Kf3 {[%clk 0:00:05.3]} 31... f5
{[%clk 0:00:07.6]} 32. Nc2 {[%clk 0:00:05.1]} 32... c5 {[%clk 0:00:06]} 33. Ne3
{[%clk 0:00:05.7]} 33... fxg4+ {[%clk 0:00:06.2]} 34. hxg4 {[%clk 0:00:06]}
34... h5 {[%clk 0:00:05.2]} 35. gxh5 {[%clk 0:00:06.9]} 35... gxh5 {[%clk
0:00:06.1]} 36. Nc4 {[%clk 0:00:07.5]} 36... Nd5 {[%clk 0:00:03.3]} 37. Ke4
{[%clk 0:00:06.9]} 37... Nb6 {[%clk 0:00:03.5]} 38. Nd2 {[%clk 0:00:06.6]} 38...
Na4 {[%clk 0:00:02.7]} 39. Nc4 {[%clk 0:00:05.5]} 39... Be7 {[%clk 0:00:02.6]}
40. Kd3 {[%clk 0:00:04.5]} 40... h4 {[%clk 0:00:02.4]} 41. b3 {[%clk 0:00:05.1]}
41... Nb6 {[%clk 0:00:02.1]} 42. Nd2 {[%clk 0:00:05.8]} 42... Nd5 {[%clk
0:00:02.4]} 43. Ne4 {[%clk 0:00:03.6]} 43... h3 {[%clk 0:00:02.4]} 44. Bg3
{[%clk 0:00:03.3]} 44... Bd6 {[%clk 0:00:02.1]} 45. Ke2 {[%clk 0:00:02.4]} 45...
Nf4+ {[%clk 0:00:02.6]} 46. Bxf4 {[%clk 0:00:02.5]} 46... Bxf4 {[%clk
0:00:03.5]} 47. Kf3 {[%clk 0:00:03.4]} 47... Bd6 {[%clk 0:00:03.5]} 48. Nf2
{[%clk 0:00:03.4]} 48... h2 {[%clk 0:00:04.4]} 49. Kg2 {[%clk 0:00:03.4]} 49...
Ke5 {[%clk 0:00:04.9]} 50. Ng4+ {[%clk 0:00:03.6]} 50... Ke4 {[%clk 0:00:05.8]}
51. Nf6+ {[%clk 0:00:04.2]} 51... Kd3 {[%clk 0:00:06.1]} 52. c4 {[%clk
0:00:04.8]} 52... Kc3 {[%clk 0:00:06.2]} 53. Nd7 {[%clk 0:00:05.3]} 53... Kb2
{[%clk 0:00:06.1]} 54. Nb8 {[%clk 0:00:05.9]} 54... Kxa2 {[%clk 0:00:06.3]} 55.
b4 {[%clk 0:00:06.1]} 55... cxb4 {[%clk 0:00:06.3]} 56. Nxa6 {[%clk 0:00:06.9]}
56... b3 {[%clk 0:00:06.2]} 57. c5 {[%clk 0:00:07.8]} 57... Bxc5 {[%clk
0:00:06.2]} 58. Nxc5 {[%clk 0:00:08.2]} 58... b2 {[%clk 0:00:07.1]} 0-1